[Event "1st Fischer Memorial 2017"]
[Site "Heraklion"]
[Date "2017.04.17"]
[Round "1"]
[White "Kourkoulos-Arditis, Stamatis"]
[Black "Goumas, Georgios"]
[Result "1/2-1/2"]
[ECO "D02"]
[WhiteElo "2365"]
[BlackElo "2407"]
[Annotator "RC"]
[PlyCount "85"]
[EventDate "2017.??.??"]
[EventType "tourn"]
[EventCountry "GRE"]
[SourceTitle "playchess.com"]
[Source "ChessBase"]
[SourceQuality "1"]
[TimeControl "40/5400+30:1800+30"]

1. Nf3 {[%emt 0:00:00]} d5 {[%emt 0:00:20]} 2. d4 {[%emt 0:00:12]} Nf6 {[%emt 0:00:16]} 3. g3 {[%emt 0:00:57]} Bf5 {[%emt 0:00:39]} 4. Bg2 {[%emt 0:00:30]} e6 {[%emt 0:00:11]} 5. c4 {[%emt 0:01:26]} c6 {[%emt 0:00:32]} 6. Nc3 {[%emt 0:01:13]} Nbd7 {[%emt 0:02:26]} 7. Nh4 Bg4 {[%emt 0:08:16]} 8. h3 {[%emt 0:10:17]} Bh5 {[%emt 0:00:07]} 9. g4 {[%emt 0:00:10]} Bg6 {[%emt 0:29:42]} 10. Nxg6 {[%emt 0:14:05]} hxg6 {[%emt 0:00:15]} 11. cxd5 {[%emt 0:03:12]} exd5 {[%emt 0:01:16]} 12. Bf4 {[%emt 0:01:03]} Nb6 {[%emt 0:00:36]} 13. Qd3 {[%emt 0:14:09]} Bd6 {[%emt 0:04:34]} 14. Qg3 {[%emt 0:03:12]} Nc4 {[%emt 0:03:01]} 15. b3 {[%emt 0:02:32]} Bxf4 {[%emt 0:03:51]} 16. Qxf4 {[%emt 0:00:08]} Qd6 {[%emt 0:00:12]} 17. Qxd6 {[%emt 0:03:54]} Nxd6 {[%emt 0:00:08]} 18. f3 {[%emt 0:00:05]} O-O-O {[%emt 0:01:58]} 19. Kf2 {[%emt 0:02:00]} Nd7 {[%emt 0:02:37]} 20. e4 {[%emt 0:04:16]} dxe4 {[%emt 0:05:36]} 21. fxe4 {[%emt 0:00:05]} f6 {[%emt 0:04:25]} 22. b4 {[%emt 0:01:01]} Nf8 {[%emt 0:02:59]} 23. Rac1 {[%emt 0:14:36]} Ne6 {[%emt 0:04:12]} 24. Ne2 {[%emt 0:02:43]} Kb8 {[%emt 0:02:29]} 25. d5 {[%emt 0:01:28]} cxd5 {[%emt 0:03:48]} 26. exd5 {[%emt 0:00:06]} Nc7 {[%emt 0:00:26]} 27. Rhe1 {[%emt 0:03:44]} Nf7 {[%emt 0:03:58]} 28. Rcd1 {[%emt 0:05:33]} Rd7 {[%emt 0:06:09]} 29. Nf4 {[%emt 0:02:30]} Ne5 {[%emt 0:00:39]} 30. Nd3 {[%emt 0:06:01]} Nxd3+ {[%emt 0:00:30]} 31. Rxd3 {[%emt 0:00:02]} Rhd8 {[%emt 0:02:25]} 32. Red1 {[%emt 0:00:14]} g5 {[%emt 0:03:20]} 33. Be4 {[%emt 0:00:07]} Rd6 {[%emt 0:01:09]} 34. a4 {[%emt 0:01:18]} Re8 {[%emt 0:00:15]} 35. Re3 {[%emt 0:00:36]} Red8 {[%emt 0:00:50]} 36. Bf3 {[%emt 0:00:21]} R6d7 {[%emt 0:01:42]} 37. a5 {[%emt 0:01:11]} Nxd5 {[%emt 0:00:48]} 38. Red3 {[%emt 0:00:13]} Nb6 {[%emt 0:00:08]} 39. Rxd7 {[%emt 0:00:23]} Nxd7 {[%emt 0:00:01]} 40. b5 {[%emt 0:00:00]} Kc7 {[%emt 0:02:34]} 41. Rc1+ {[%emt 0:03:00]} Kb8 {[%emt 0:00:44]} 42. Rd1 {[%emt 0:00:07]} Kc7 {[%emt 0:04:38]} 43. Rc1+ {[%emt 0:00:04]} 1/2-1/2

[Event "1st Fischer Memorial 2017"]
[Site "Heraklion"]
[Date "2017.04.20"]
[Round "5"]
[White "Kourkoulos-Arditis, Stamatis"]
[Black "Pavlidis, Anastasios"]
[Result "0-1"]
[ECO "B78"]
[WhiteElo "2365"]
[BlackElo "2380"]
[Annotator "NA"]
[PlyCount "80"]
[EventDate "2017.??.??"]
[EventType "tourn"]
[EventCountry "GRE"]
[SourceTitle "playchess.com"]
[Source "ChessBase"]
[SourceQuality "1"]
[TimeControl "40/5400+30:1800+30"]

1. e4 {[%emt 0:00:00]} c5 {[%emt 0:00:14]} 2. Nf3 {[%emt 0:00:00]} d6 {[%emt 0:00:20]} 3. d4 {[%emt 0:00:00]} cxd4 {[%emt 0:00:07]} 4. Nxd4 {[%emt 0:00:00]} Nf6 {[%emt 0:00:13]} 5. Nc3 {[%emt 0:00:00]} g6 {[%emt 0:01:09]} 6. Be3 {[%emt 0:00:00]} Bg7 {[%emt 0:00:06]} 7. f3 {[%emt 0:00:00]} Nc6 {[%emt 0:00:13] LiveBook: 3677 Games} 8. Qd2 {[%emt 0:00:03]} O-O {[%emt 0:00:13]} 9. Bc4 {[%emt 0:00:05]} Bd7 {[%emt 0:00:29]} 10. O-O-O {[%emt 0:00:08]} Ne5 {[%emt 0:00:38]} 11. Bb3 {[%emt 0:00:08]} Rc8 {[%emt 0:01:41]} 12. Kb1 {[%emt 0:00:10]} Re8 {[%emt 0:00:35]} 13. h4 {[%emt 0:01:24]} h5 {[%emt 0:00:12]} 14. g4 {[%emt 0:00:22]} hxg4 {[%emt 0:00:15]} 15. h5 {[%emt 0:00:21]} Nxh5 {[%emt 0:00:51]} 16. Bh6 {[%emt 0:00:07]} Kh7 {[%emt 0:00:36]} ({Don't go for} 16... gxf3 $2 {[#]} 17. Rxh5 $1 {[%mdl 512]} Bf6 18. Rhh1 $18) ({Don't take} 16... Nxf3 $2 17. Nxf3 Bxc3 18. bxc3 $18) (16... e6 $11) 17. Bxg7 {[%emt 0:00:20]} Kxg7 {[%emt 0:00:11]} 18. fxg4 {[%emt 0:00:19]} Bxg4 {[%emt 0:00:09]} 19. Nf5+ {[%emt 0:00:18]} Bxf5 {[%emt 0:00:15]} ({Don't capture} 19... gxf5 $2 20. Qg5+ Ng6 21. exf5 Bxf5 22. Rxh5 $18) 20. exf5 {[%emt 0:00:06]} Rh8 {[%emt 0:00:35]} 21. fxg6 {[%emt 0:00:04]} Nxg6 {[%emt 0:00:37]} ({But not} 21... fxg6 $2 22. Ne4 $18) 22. Nd5 {[%emt 0:00:57]} Nf6 {[%emt 0:02:57]} 23. Nxf6 {[%emt 0:00:15]} exf6 {[%emt 0:00:23]} 24. Rxh8 {[%emt 0:01:16]} Qxh8 {[%emt 0:00:58]} 25. Qd5 {[%emt 0:00:12]} Rc7 {[%emt 0:13:59]} 26. Qxd6 {[%emt 0:10:10]} Re7 {[%emt 0:01:42]} 27. a3 {[%emt 0:14:21]} Qh4 {[%emt 0:04:36]} 28. Qd5 {[%emt 0:02:25]} Qe4 {[%emt 0:08:08]} 29. Qd8 {[%emt 0:11:39]} f5 {[%emt 0:07:57]} 30. Qc8 {[%emt 0:11:43]} f4 {[%emt 0:02:56]} 31. Bd5 {[%emt 0:00:33]} Qe2 {[%emt 0:07:13]} 32. Rh1 {[%emt 0:01:08]} b6 {[%emt 0:09:29]} 33. Ka2 {[%emt 0:07:45]} Qe5 {[%emt 0:10:29]} 34. c4 {[%emt 0:00:11]} Qf6 {[%emt 0:07:29]} 35. Rh2 $2 {[%emt 0:04:30]} (35. Qg4 $1 $11 {and White stays safe.}) 35... f3 {[%emt 0:01:34]} 36. Qg4 {[%emt 0:02:01]} ({Stronger than} 36. Qh3 Re2 37. Qh6+ Kg8 38. Qh7+ Kf8 39. Qxf7+ Qxf7) 36... f2 {[%emt 0:01:28]} 37. Bg2 {[%emt 0:01:08]} f1=Q {[%emt 0:02:44]} 38. Bxf1 {[%emt 0:00:03]} Qxf1 {[%emt 0:00:11]} 39. Qd4+ {[%emt 0:00:04]} Re5 {[%emt 0:00:45]} 40. Rf2 $19 {[%emt 0:00:00]} Qe1 {[%emt 0:01:04]} 0-1

[Event "1st Fischer Memorial 2017"]
[Site "Heraklion"]
[Date "2017.04.20"]
[Round "5"]
[White "Gungl, Theo"]
[Black "Migot, Tangi"]
[Result "1/2-1/2"]
[ECO "B47"]
[WhiteElo "2269"]
[BlackElo "2355"]
[Annotator "NA"]
[PlyCount "51"]
[EventDate "2017.??.??"]
[EventType "tourn"]
[EventCountry "GRE"]
[SourceTitle "playchess.com"]
[Source "ChessBase"]
[SourceQuality "1"]
[TimeControl "40/5400+30:1800+30"]

{[%evp 9,51,27,35,18,30,26,28,25,47,45,52,32767,47,3,22,32767,32767,16,24,-4,32767,32767,32767,32767,32767,32767,32767,32767,32767,0,32767,32767,6,32767,32767,32767,32767,32767,32767,32767,32767,32767,0,0]} 1. e4 {[%emt 0:00:00]} c5 {[%emt 0:00:33]} 2. Nf3 {[%emt 0:00:00]} e6 {[%emt 0:00:26]} 3. d4 {[%emt 0:00:00]} cxd4 {[%emt 0:00:05]} 4. Nxd4 {[%emt 0:00:00]} Nc6 {[%emt 0:00:07]} 5. Nc3 {[%emt 0:00:00]} Qc7 {[%emt 0:00:37]} 6. g3 {[%emt 0:00:20]} a6 {[%emt 0:01:03]} 7. Bg2 {[%emt 0:00:06]} Nf6 {[%emt 0:00:35]} 8. O-O {[%emt 0:00:13]} Nxd4 {[%emt 0:01:32]} 9. Qxd4 {[%emt 0:00:03]} Bc5 {[%emt 0:00:09]} 10. Bf4 {[%emt 0:00:26]} d6 {[%emt 0:00:33]} 11. Qd3 {[%emt 0:00:12]} Nd7 {[%emt 0:01:10]} 12. Na4 {[%emt 0:17:08] B47: Sicilian: Taimanov: 5 Nc3 Qc7 6 f4, 6 g3 and 6 Be2} e5 {[%emt 0:00:47]} 13. Bd2 {[%emt 0:01:14]} Bd4 {[%emt 0:01:13]} 14. Bc3 {[%emt 0:19:19] LiveBook: 4 Games} (14. Nc3 Nf6 15. Rac1 Be6 16. b3 Rc8 17. Nd1 h5 18. Be3 Bc5 19. Bxc5 Qxc5 {½-½ (47) Ivanov,A (2529)-Robson,R (2620) Saint Louis 2013}) 14... Nc5 {[%emt 0:32:20]} 15. Nxc5 {[%emt 0:00:15]} dxc5 $146 {[%emt 0:00:10]} (15... Bxc5 16. Rad1 Bg4 17. Rd2 O-O 18. b4 Ba7 19. Bb2 Rac8 {½-½ (50) Moradiabadi,E (2490)-Geller,J (2495) Moscow 2006}) 16. Bxd4 {[%emt 0:08:15]} cxd4 {[%emt 0:00:11]} 17. c3 {[%emt 0:00:06]} dxc3 {[%emt 0:04:09]} 18. Rac1 {[%emt 0:00:17]} Be6 {[%emt 0:00:32]} 19. Qxc3 {[%emt 0:10:22]} Qxc3 {[%emt 0:01:46]} 20. Rxc3 {[%emt 0:00:46]} Rc8 {[%emt 0:10:38]} 21. Rxc8+ {[%emt 0:07:19]} Bxc8 {[%emt 0:00:05]} 22. Rc1 {[%emt 0:00:10]} Kd8 {[%emt 0:00:28]} 23. f4 {[%emt 0:06:23]} Re8 {[%emt 0:03:40]} 24. Rc5 {[%emt 0:00:57]} f6 {[%emt 0:06:09]} 25. fxe5 {[%emt 0:05:31]} Rxe5 {[%emt 0:03:36]} 26. Rxe5 $11 {[%emt 0:00:13]} 1/2-1/2

[Event "1st Fischer Memorial 2017"]
[Site "Heraklion"]
[Date "2017.04.21"]
[Round "6"]
[White "Migot, Tangi"]
[Black "Mitsis, Georgios"]
[Result "1/2-1/2"]
[ECO "C05"]
[WhiteElo "2355"]
[BlackElo "2239"]
[Annotator "ChessBase"]
[PlyCount "73"]
[EventDate "2017.??.??"]
[EventType "tourn"]
[EventCountry "GRE"]
[SourceTitle "playchess.com"]
[Source "ChessBase"]
[SourceQuality "1"]
[TimeControl "40/5400+30:1800+30"]

1. e4 {[%emt 0:00:00]} e6 {[%emt 0:00:13]} 2. d4 {[%emt 0:00:12]} d5 {[%emt 0:00:07]} 3. Nd2 {[%emt 0:00:06]} Nf6 {[%emt 0:00:16]} 4. e5 {[%emt 0:01:03]} Nfd7 {[%emt 0:00:05]} 5. f4 {[%emt 0:00:59]} c5 {[%emt 0:00:21]} 6. c3 {[%emt 0:00:24]} Nc6 {[%emt 0:00:15]} 7. Ndf3 {[%emt 0:00:47]} Qb6 {[%emt 0:00:26]} 8. g3 {[%emt 0:00:33]} cxd4 {[%emt 0:00:26]} 9. cxd4 {[%emt 0:00:06]} Bb4+ {[%emt 0:00:13]} 10. Kf2 {[%emt 0:00:54]} g5 {[%emt 0:00:35]} 11. fxg5 {[%emt 0:01:14]} Ndxe5 {[%emt 0:01:22]} 12. Nxe5 {[%emt 0:00:33]} Nxe5 {[%emt 0:00:06]} 13. Kg2 {[%emt 0:00:12]} Nc6 {[%emt 0:00:45]} 14. Nf3 {[%emt 0:01:13]} Bf8 {[%emt 0:01:01]} 15. b3 {[%emt 0:00:44]} Bg7 {[%emt 0:00:14]} 16. Bb2 {[%emt 0:00:59]} Bd7 {[%emt 0:01:24]} 17. Rc1 {[%emt 0:01:22]} O-O {[%emt 0:22:04]} 18. Bd3 {[%emt 0:06:30]} Rfe8 {[%emt 0:02:44]} 19. Re1 {[%emt 0:13:11]} Rac8 {[%emt 0:02:14]} 20. Bb1 {[%emt 0:13:15]} Ne7 {[%emt 0:04:10]} 21. Ne5 {[%emt 0:01:17]} Bxe5 {[%emt 0:01:47]} 22. Rxc8 {[%emt 0:08:47]} Rxc8 {[%emt 0:00:49]} 23. Rxe5 {[%emt 0:00:21]} Qd6 {[%emt 0:03:30]} 24. Qd3 {[%emt 0:05:04]} Ng6 {[%emt 0:00:51]} 25. Re2 {[%emt 0:00:52]} Qb4 {[%emt 0:12:15]} 26. Rf2 {[%emt 0:03:35]} Bb5 {[%emt 0:12:18]} 27. Qf3 {[%emt 0:03:53]} Rc7 {[%emt 0:02:18]} 28. h4 {[%emt 0:02:42]} Qe1 {[%emt 0:10:06]} 29. Qf6 {[%emt 0:06:10]} Nf8 {[%emt 0:06:59]} 30. g6 {[%emt 0:04:34]} hxg6 {[%emt 0:06:43]} 31. Ba3 {[%emt 0:13:31]} Qxb1 {[%emt 0:02:06]} 32. Bxf8 {[%emt 0:00:15]} Qe4+ {[%emt 0:00:29]} 33. Kh2 {[%emt 0:00:33]} Kxf8 {[%emt 0:00:20]} 34. Qd8+ {[%emt 0:00:31]} Be8 {[%emt 0:00:25]} 35. Qxc7 {[%emt 0:00:45]} Qxd4 {[%emt 0:00:13]} 36. Kg1 {[%emt 0:02:48]} Qe3 {[%emt 0:01:01]} 37. Qd6+ {[%emt 0:05:41]} 1/2-1/2